bitfinex-derivatives/quotes_BTCF0:USTF0_20251118
["timestamp","ask_amount","ask_price","bid_price","bid_amount"]
[1763472902568,0.00073267,91170.0,91169.0,0.04418]
[1763472902768,0.00013829,91176.0,91175.0,0.04418]
[1763472903071,0.00016451,91185.0,91172.0,0.1098029]
[1763472903072,0.00016451,91185.0,91184.0,0.04418]
[1763472903659,0.04420451,91185.0,91184.0,0.04418]
[1763472904679,0.04420451,91185.0,91184.0,0.02275]
[1763472904975,0.04420451,91185.0,91184.0,0.04418]
[1763472905169,0.02210451,91185.0,91184.0,0.04418]
[1763472905370,0.00016451,91185.0,91184.0,0.04418]
[1763472906671,0.04420451,91185.0,91184.0,0.04418]
[1763472907771,0.04404,91181.0,91180.0,0.02494803]
[1763472907964,0.04404,91181.0,91180.0,0.04637803]
[1763472908567,0.00016451,91185.0,91184.0,0.04418]
[1763472909367,0.04420451,91185.0,91184.0,0.04418]
[1763472910178,0.00016451,91185.0,91184.0,0.04418]
[1763472910377,0.02210451,91185.0,91184.0,0.04418]
[1763472910580,0.04420451,91185.0,91184.0,0.04418]
[1763472910971,0.04404,91181.0,91180.0,0.02494803]
[1763472911166,0.02194,91169.0,91168.0,0.3097]
[1763472911373,0.04404,91169.0,91168.0,0.3097]
[1763472911975,0.00016451,91185.0,91184.0,0.04418]
[1763472912283,4.51e-06,91185.0,91184.0,0.04418]
[1763472912870,4.51e-06,91185.0,91184.0,0.02275]
[1763472913075,0.04404451,91185.0,91184.0,0.02275]
[1763472913276,0.04404,91181.0,91180.0,0.04637803]
[1763472913579,4.51e-06,91185.0,91180.0,0.05903803]
[1763472913792,4.51e-06,91185.0,91180.0,0.01485803]
[1763472915380,0.04404,91181.0,91180.0,0.04637803]
[1763472917384,4.51e-06,91185.0,91180.0,0.01485803]
[1763472917577,0.14521701,91210.0,91199.0,0.02143]
[1763472917771,0.04404,91209.0,91208.0,0.04418]
[1763472917970,0.04404,91209.0,91190.0,0.01266]
[1763472918173,0.04404,91209.0,91160.0,0.14520701]
[1763472918174,0.04404,91201.0,91200.0,0.00219803]
[1763472919176,0.04404,91192.0,91191.0,0.00016451]
[1763472919581,0.04404,91192.0,91191.0,0.02291451]
[1763472920287,0.06786779,91192.0,91191.0,0.00016451]
[1763472920681,0.06786779,91192.0,91160.0,0.01266]
[1763472920682,0.02202,91167.0,91166.0,0.04248423]
[1763472920888,0.04443,91167.0,91166.0,0.04248423]
[1763472921678,0.04516267,91170.0,91169.0,0.04221]
[1763472922288,0.04443,91167.0,91166.0,0.02134423]
[1763472922487,0.04443,91167.0,91166.0,0.04248423]
[1763472922784,0.04443,91167.0,91156.0,0.17396]
[1763472922785,0.04443,91160.0,91156.0,0.17396]
[1763472922976,0.00016451,91176.0,91175.0,0.04221]
[1763472923481,0.04459451,91176.0,91170.0,0.00219803]
[1763472923680,0.04443,91171.0,91170.0,0.04440803]
[1763472923881,0.02202,91171.0,91170.0,0.04440803]
[1763472924082,0.04459451,91176.0,91175.0,0.04221]
[1763472925276,0.04443,91171.0,91170.0,0.04440803]
[1763472928082,0.00016451,91176.0,91175.0,0.04285]
[1763472928285,0.04413,91171.0,91170.0,0.02362803]
[1763472928487,0.04413,91171.0,91170.0,0.04504803]
[1763472928688,0.04413,91171.0,91170.0,0.00219803]
[1763472929183,0.04413,91171.0,91170.0,0.04504803]
[1763472929388,0.04413,91171.0,91170.0,0.02362803]
[1763472929590,0.04413,91171.0,91170.0,0.00219803]
[1763472929790,0.06770716,91171.0,91170.0,0.02362803]
[1763472930480,0.06770716,91171.0,91170.0,0.04504803]
[1763472931486,0.06770716,91171.0,91170.0,0.00219803]
[1763472932092,0.06770716,91171.0,91170.0,0.02362803]
[1763472932390,0.06770716,91171.0,91170.0,0.00219803]
[1763472932989,0.04413,91160.0,91159.0,0.04297308]
[1763472933192,0.04413,91160.0,91159.0,0.02155308]
[1763472933193,0.08235294,91160.0,91159.0,0.02155308]
[1763472933684,0.08235294,91160.0,91159.0,0.04297308]
[1763472933885,0.04413,91144.0,91130.0,0.06885]
[1763472934200,0.04413,91141.0,91140.0,0.02362803]
[1763472934488,0.00016451,91146.0,91145.0,0.04285]
[1763472934682,0.14645701,91170.0,91145.0,0.04285]
[1763472934886,0.04486267,91170.0,91169.0,0.04285]
[1763472935086,0.06854108,91170.0,91169.0,0.04285]
[1763472935586,0.02441108,91170.0,91169.0,0.04285]
[1763472938094,0.02367841,91170.0,91169.0,0.04285]
[1763472938284,0.00011316,91170.0,91169.0,0.04285]
[1763472942693,0.04424316,91170.0,91169.0,0.04285]
[1763472942884,0.00084583,91170.0,91169.0,0.04285]
[1763472943688,3.16e-06,91170.0,91169.0,0.04285]
[1763472944289,0.04486583,91170.0,91169.0,0.04285]
[1763472945196,0.00073583,91170.0,91169.0,0.04285]
[1763472945996,3.16e-06,91170.0,91167.0,0.1098088]
[1763472947292,0.00016451,91179.0,91165.0,0.1098112]
[1763472947601,0.00016451,91179.0,91178.0,0.04285]
[1763472948000,0.04429451,91179.0,91178.0,0.04285]
[1763472948196,0.06790418,91179.0,91178.0,0.04285]
[1763472949205,0.04658418,91179.0,91178.0,0.04285]
[1763472949501,0.06790418,91179.0,91178.0,0.02143]
[1763472949806,0.06790418,91179.0,91178.0,0.04285]
[1763472949994,0.02377418,91179.0,91178.0,0.04285]
[1763472951206,0.06790418,91179.0,91178.0,0.04285]
[1763472952092,0.04429451,91179.0,91178.0,0.04285]
[1763472952602,0.02297451,91179.0,91178.0,0.04285]
[1763472954405,0.04429451,91179.0,91178.0,0.04285]
[1763472954801,0.04413,91171.0,91170.0,0.04285]
[1763472955002,0.04413,91171.0,91170.0,0.04504803]
[1763472955393,0.00016451,91179.0,91178.0,0.04285]
[1763472955394,0.02297451,91179.0,91178.0,0.04285]
[1763472955600,0.04429451,91179.0,91178.0,0.04285]
[1763472956010,0.06779545,91179.0,91178.0,0.04285]
[1763472959602,0.06820545,91179.0,91178.0,0.04285]
[1763472960111,0.02243,91169.0,91168.0,0.05184]
[1763472960302,0.04470451,91179.0,91178.0,0.04291]
[1763472960502,0.06820472,91179.0,91178.0,0.04291]
[1763472961606,0.00016451,91179.0,91178.0,0.04291]
[1763472961807,0.04470451,91179.0,91178.0,0.04291]
[1763472962111,0.00016451,91179.0,91178.0,0.04291]
[1763472963411,0.15088831,91190.0,91189.0,0.02125]
[1763472963606,0.0687732,91190.0,91189.0,0.02125]
[1763472965006,0.0687732,91190.0,91189.0,0.04291]
[1763472965208,0.0687732,91190.0,91189.0,0.02125]
[1763472965712,0.04454,91181.0,91180.0,0.04307451]
[1763472965912,0.06804053,91181.0,91180.0,0.04527254]
[1763472970310,0.06804053,91181.0,91180.0,0.02361254]
[1763472970510,0.06804053,91181.0,91180.0,0.04527254]
[1763472974021,0.04454,91181.0,91180.0,0.08478432]
[1763472975016,0.04454,91181.0,91180.0,0.08478432]
[1763472975417,0.0389139,91197.0,91196.0,0.04291]
[1763472975418,0.0834539,91197.0,91196.0,0.04291]
[1763472975613,0.04454,91190.0,91189.0,0.05581]
[1763472975811,0.04527267,91190.0,91189.0,0.05581]
[1763472977622,0.04454,91185.0,91184.0,0.08242178]
[1763472977817,0.04454,91185.0,91184.0,0.04291]
[1763472980711,0.04462,91181.0,91180.0,0.02480254]
[1763472980927,0.0681074,91181.0,91180.0,0.04657254]
[1763472985517,0.0681074,91181.0,91166.0,0.00027423]
[1763472985518,0.04431,91167.0,91166.0,0.00027423]
[1763472985826,0.0677974,91167.0,91166.0,0.00027423]
[1763472986020,0.04431,91143.0,91142.0,0.05879635]
[1763472986323,0.04431,91134.0,91133.0,0.05713]
[1763472986513,0.04447451,91143.0,91142.0,0.04421]
[1763472986716,0.00016451,91143.0,91142.0,0.04421]
[1763472986914,0.0389139,91168.0,91143.0,0.1098383]
[1763472987123,0.0449,91168.0,91167.0,0.04335]
[1763472987630,0.00073267,91170.0,91160.0,0.1236771]
[1763472987631,0.00073267,91170.0,91169.0,0.04335]
[1763472987933,0.0449,91188.0,91187.0,0.04335]
[1763472988226,0.02268,91188.0,91187.0,0.04335]
[1763472988429,0.00073267,91190.0,91189.0,0.04335]
[1763472988622,0.04563267,91190.0,91189.0,0.04335]
[1763472989722,0.00073267,91190.0,91189.0,0.04335]
[1763472990416,0.02341267,91190.0,91189.0,0.04335]
[1763472990621,0.04563267,91190.0,91189.0,0.04335]
[1763472990825,0.0449,91181.0,91180.0,0.05721]
[1763472991027,0.0449,91190.0,91189.0,0.04335]
[1763472991331,0.0449,91179.0,91178.0,0.04351451]
[1763472992033,0.00073267,91180.0,91179.0,0.04335]
[1763472992526,0.00016451,91197.0,91180.0,0.01605803]
[1763472992731,0.04563267,91190.0,91189.0,0.04335]
[1763472994727,0.04563267,91190.0,91189.0,0.02134]
[1763472995026,0.04563267,91190.0,91180.0,0.01386]
[1763472995227,0.0449,91181.0,91180.0,0.05940803]
[1763472996022,0.00016451,91197.0,91180.0,0.05940803]
[1763472996229,0.04563267,91190.0,91189.0,0.04335]
[1763472996527,0.02341267,91190.0,91189.0,0.04335]
[1763472996727,0.04563267,91190.0,91189.0,0.04335]
[1763472996933,0.04563267,91190.0,91189.0,0.02134]
[1763472997635,0.04563267,91190.0,91189.0,0.04335]
[1763472998525,0.0449,91189.0,91188.0,0.01386]
[1763472998828,0.0449,91189.0,91180.0,0.01386]
[1763472998829,0.02268,91181.0,91180.0,0.05940803]
[1763472999028,0.04506451,91197.0,91196.0,0.04335]
[1763473000025,0.00016451,91197.0,91196.0,0.04335]
[1763473001026,0.04506451,91197.0,91196.0,0.04335]
[1763473001523,0.00016451,91197.0,91196.0,0.04335]
[1763473001828,0.04506451,91197.0,91196.0,0.04335]
[1763473002222,0.0449,91189.0,91188.0,0.05721]
[1763473002737,0.0449,91189.0,91188.0,0.02134]
[1763473003327,0.0449,91189.0,91188.0,0.04335]
[1763473004738,0.0449,91181.0,91180.0,0.05721]
[1763473004940,0.02268,91181.0,91180.0,0.05940803]
[1763473005139,0.00016451,91197.0,91180.0,0.05940803]
[1763473005341,0.00073267,91190.0,91189.0,0.04335]
[1763473005839,0.04563267,91190.0,91189.0,0.04335]
[1763473006844,0.02268,91181.0,91180.0,0.04335]
[1763473007032,0.0449,91181.0,91180.0,0.04554803]
[1763473008435,0.0449,91181.0,91180.0,0.00219803]
[1763473008838,0.0449,91181.0,91178.0,0.00016451]
[1763473008839,0.0449,91179.0,91178.0,0.00016451]
[1763473011130,0.0449,91157.0,91154.0,0.03948219]
[1763473011337,0.0449,91151.0,91150.0,0.00219803]
[1763473011540,0.0449,91137.0,91136.0,0.04335]
[1763473011731,0.00073267,91140.0,91139.0,0.04335]
[1763473011930,0.00696,91161.0,91134.0,0.01386]
[1763473011931,0.0449,91151.0,91150.0,0.00219803]
[1763473012135,0.0449,91133.0,91132.0,0.04335]
[1763473012339,0.00016451,91142.0,91132.0,0.04335]
[1763473012539,0.0449,91141.0,91140.0,0.05940803]
[1763473012733,0.00016451,91142.0,91141.0,0.04335]
[1763473013533,0.0449,91160.0,91159.0,0.04335]
[1763473013733,0.04563267,91160.0,91159.0,0.04335]
[1763473015041,0.02341267,91160.0,91159.0,0.04335]
[1763473015238,0.04563267,91160.0,91159.0,0.04335]
[1763473015637,0.00073267,91160.0,91159.0,0.04335]
[1763473017036,0.02171451,91169.0,91168.0,0.04221]
[1763473017236,0.04342451,91169.0,91168.0,0.04221]
[1763473019139,0.00016451,91169.0,91168.0,0.04221]
[1763473019441,0.04342451,91169.0,91168.0,0.04221]
[1763473020842,0.00016451,91169.0,91168.0,0.04221]
[1763473021639,0.02171451,91169.0,91168.0,0.04221]
[1763473021855,0.04342451,91169.0,91168.0,0.04221]
[1763473022043,0.00016451,91169.0,91168.0,0.04221]
[1763473022547,0.02171451,91169.0,91168.0,0.04221]
[1763473022741,0.00016451,91169.0,91168.0,0.04221]
[1763473023448,0.26557585,91190.0,91189.0,0.04221]
[1763473023645,0.04399267,91190.0,91189.0,0.04221]
[1763473024542,0.04399267,91190.0,91189.0,0.02118]
[1763473024940,0.04326,91181.0,91180.0,0.04237451]
[1763473025246,0.04326,91181.0,91180.0,0.00236254]
[1763473026543,0.04326,91181.0,91180.0,0.04457254]
[1763473027547,0.04326,91181.0,91160.0,0.03948219]
[1763473027548,0.04326,91161.0,91160.0,0.03948219]
[1763473027748,0.04326,91143.0,91142.0,0.04221]
[1763473027946,0.05604,91150.0,91149.0,0.02118]
[1763473028247,0.0816357,91150.0,91149.0,0.04221]
[1763473028748,0.0816357,91150.0,91149.0,0.02118]
[1763473029044,0.02155,91141.0,91140.0,0.02134451]
[1763473029357,0.04326,91141.0,91140.0,0.04237451]
[1763473030138,0.04326,91141.0,91140.0,0.00016451]
[1763473030346,0.04326,91141.0,91140.0,0.04237451]
[1763473030650,0.04326,91141.0,91140.0,0.02134451]
[1763473030847,0.04326,91141.0,91140.0,0.00016451]
[1763473031346,0.04326,91127.0,91114.0,0.00471616]
[1763473032047,0.02374803,91130.0,91129.0,0.04221]
[1763473032249,0.04545803,91130.0,91129.0,0.04221]
[1763473032436,0.04326,91127.0,91126.0,0.04248435]
[1763473032840,0.00219803,91130.0,91129.0,0.04221]
[1763473033048,0.15428089,91136.0,91135.0,0.04221]
[1763473033237,0.02155,91127.0,91126.0,0.04248435]
[1763473033443,0.00219803,91130.0,91129.0,0.04221]
[1763473033847,0.04545803,91130.0,91129.0,0.04221]
[1763473034154,0.04326,91127.0,91126.0,0.04248435]
[1763473034549,0.04326,91127.0,91126.0,0.00027435]
[1763473034757,0.04326,91121.0,91120.0,0.00016461]
[1763473035243,0.01278,91130.0,91114.0,0.00471616]
[1763473035244,0.04326,91115.0,91114.0,0.00471616]
[1763473035753,0.04326,91104.0,91103.0,0.02129909]
[1763473036356,0.04326,91104.0,91103.0,0.00011909]
[1763473036552,0.04326,91087.0,91072.0,0.05495]
[1763473036741,0.04545803,91090.0,91089.0,0.04221]
[1763473037460,0.02383927,91090.0,91089.0,0.04221]
[1763473037659,9.124e-05,91090.0,91089.0,0.04221]
[1763473038155,0.00228927,91090.0,91089.0,0.04221]
[1763473039251,0.00228927,91090.0,91080.0,0.04221]
[1763473039451,0.17828016,91090.0,91089.0,0.02118]
[1763473039652,0.04554927,91090.0,91089.0,0.02118]
[1763473040058,0.02155,91081.0,91080.0,0.04221]
[1763473040259,0.13282213,91090.0,91080.0,0.04221]
[1763473040453,0.13502016,91090.0,91080.0,0.04221]
[1763473042657,0.05926704,91080.0,91062.0,0.05495]
[1763473042853,0.19199793,91080.0,91062.0,0.05495]
[1763473043044,0.17799793,91080.0,91079.0,0.04435]
[1763473043244,0.04526704,91080.0,91079.0,0.04435]
[1763473043553,0.05926704,91080.0,91059.0,0.05495]
[1763473043742,0.04526704,91080.0,91079.0,0.04435]
[1763473043946,0.00232704,91080.0,91079.0,0.04435]
[1763473044455,0.04294,91089.0,91088.0,0.02145]
[1763473044657,0.04294,91081.0,91080.0,0.02145]
[1763473044859,0.04294,91081.0,91080.0,0.04654803]
[1763473045252,0.04294,91081.0,91080.0,0.04604803]
[1763473045753,0.152864,91072.0,91071.0,0.0001647]
[1763473046160,0.1099445,91055.0,91054.0,0.04435]
[1763473046549,0.1528845,91055.0,91054.0,0.02145]
[1763473046857,0.1528845,91055.0,91054.0,0.04435]
[1763473047053,0.1099445,91055.0,91054.0,0.04435]
[1763473048544,0.0443147,91064.0,91047.0,0.00405]
[1763473048748,0.0443147,91064.0,91049.0,0.04527]
[1763473048749,0.00219803,91050.0,91049.0,0.04527]
[1763473049454,0.04634803,91050.0,91049.0,0.04527]
[1763473049752,0.05682,91047.0,91039.0,8.467e-05]
[1763473050149,0.05682,91047.0,91046.0,0.02306459]
[1763473050363,0.05682,91047.0,91046.0,0.00027459]
[1763473050661,0.05682,91047.0,91046.0,0.02306459]
[1763473051257,0.05682,91047.0,91046.0,0.00027459]
[1763473051864,0.00219803,91050.0,91049.0,0.04527]
[1763473052157,0.04634803,91050.0,91049.0,0.04527]
[1763473052550,0.05682,91047.0,91046.0,0.00027459]
[1763473052746,0.00219803,91050.0,91049.0,0.04527]
[1763473052953,0.04634803,91050.0,91049.0,0.04527]
[1763473053159,0.04415,91047.0,91046.0,0.00027459]
[1763473053360,0.05682,91047.0,91046.0,0.00027459]
[1763473053549,0.04415,91040.0,91039.0,8.467e-05]
[1763473053754,0.04634803,91040.0,91039.0,8.467e-05]
[1763473053960,0.15631063,91040.0,91039.0,8.467e-05]
[1763473054158,0.15631063,91040.0,91017.0,0.16008]
[1763473054159,0.00219803,91040.0,91029.0,0.04527]
[1763473054361,0.15631063,91040.0,91039.0,0.04527]
[1763473054860,0.15631063,91040.0,91025.0,0.04527]
[1763473054861,0.1099795,91026.0,91025.0,0.04527]
[1763473055158,0.1099795,91026.0,91009.0,0.05495]
[1763473055159,0.1099989,91010.0,91009.0,0.10022]
[1763473055368,0.11219693,91010.0,91009.0,0.10022]
[1763473055657,0.15634693,91010.0,91009.0,0.10022]
[1763473055862,0.15634693,91010.0,91006.0,0.00027471]
[1763473055863,0.04415,91007.0,91006.0,0.00027471]
[1763473056052,0.00219803,91010.0,91009.0,0.04527]
[1763473056247,0.0001648,91019.0,91018.0,0.04527]
[1763473056663,0.0001648,91019.0,91018.0,0.03527]
[1763473057659,8.467e-05,91026.0,91025.0,0.04527]
[1763473057859,0.13273089,91050.0,91020.0,0.26628]
[1763473058056,0.00219803,91040.0,91039.0,0.04527]
[1763473058457,0.04634803,91040.0,91039.0,0.04527]
[1763473058759,0.02128,91031.0,91030.0,0.0229548]
[1763473059065,0.04415,91031.0,91030.0,0.0001648]
[1763473059258,0.01267,91036.0,90990.0,0.18768089]
[1763473059259,0.00219803,91030.0,90998.0,0.03915044]
[1763473059451,0.13492892,91030.0,91004.0,0.05495]
[1763473059757,0.04634803,91030.0,91011.0,0.05495]
[1763473060256,0.04651283,91030.0,91011.0,0.05495]
[1763473060457,0.04651283,91030.0,91029.0,0.04527]
[1763473060458,0.00236283,91030.0,91029.0,0.04527]
[1763473062170,0.02364283,91030.0,91029.0,0.04527]
[1763473062370,0.00236283,91030.0,91029.0,0.04527]
[1763473062666,0.11233753,91030.0,91029.0,0.04527]
[1763473062968,0.1099892,91018.0,91017.0,0.10022]
[1763473063170,0.1541392,91018.0,91017.0,0.10022]
[1763473064372,0.1541392,91018.0,91010.0,0.02279]
[1763473064373,0.1541477,91011.0,91010.0,0.02279]
[1763473064565,0.1541477,91011.0,91010.0,0.04527]
[1763473064765,0.1099977,91011.0,91010.0,0.04527]
[1763473064960,0.1099932,91015.0,91005.0,0.02943422]
[1763473065169,0.04634803,91020.0,91019.0,0.04527]
[1763473065365,0.1100001,91009.0,91008.0,0.07470422]
[1763473065774,0.1312801,91009.0,91008.0,0.04527]
[1763473066066,0.04415,91007.0,91003.0,0.03915044]
[1763473066269,0.1100001,91009.0,91008.0,0.04527]
[1763473066760,0.00219803,91010.0,91009.0,0.04527]
[1763473066957,0.109976,91029.0,91003.0,0.03773109]
[1763473066958,0.1668007,91025.0,91024.0,0.04527]
[1763473067160,0.1099807,91025.0,91024.0,0.04527]
[1763473067367,0.1668007,91025.0,91024.0,0.04527]
[1763473067670,0.03554,91025.0,91024.0,0.04527]
[1763473067868,0.1314195,91030.0,91029.0,0.04527]
[1763473068068,0.11233753,91030.0,91029.0,0.04527]
[1763473068263,0.0001648,91030.0,91029.0,0.1552459]
[1763473068773,0.0001648,91030.0,91029.0,0.04527]
[1763473068970,0.0001648,91030.0,91029.0,0.1552459]
[1763473069371,0.1099616,91041.0,91040.0,0.04527]
[1763473069777,0.1541174,91036.0,91035.0,0.04527]
[1763473070075,0.1099674,91036.0,91035.0,0.04527]
[1763473070275,0.1099674,91036.0,91035.0,0.07477269]
[1763473070878,0.1099674,91036.0,91035.0,0.04527]
[1763473072764,0.00219803,91040.0,91039.0,0.04527]
[1763473074381,0.0001648,91045.0,91044.0,0.04527]
[1763473074676,0.13273089,91070.0,91042.0,0.1099595]
[1763473074876,0.04634803,91060.0,91059.0,0.04527]
[1763473075078,0.00219803,91060.0,91059.0,0.04527]
[1763473076172,0.04634803,91060.0,91059.0,0.04527]
[1763473078772,0.00219803,91060.0,91059.0,0.04527]
[1763473079083,0.02543803,91060.0,91059.0,0.04527]
[1763473079379,0.06105803,91060.0,91059.0,0.04527]
[1763473079780,0.02543803,91060.0,91059.0,0.04527]
[1763473080078,0.04595,91058.0,91057.0,0.07263692]
[1763473080283,0.02324,91058.0,91057.0,0.07263692]
[1763473080581,0.04595,91058.0,91057.0,0.07263692]
[1763473080879,0.04595,91058.0,91057.0,0.02955692]
[1763473081079,0.04595,91056.0,91055.0,0.04308]
[1763473081284,0.02324,91056.0,91055.0,0.04308]
[1763473081673,0.01510803,91060.0,91059.0,0.04308]
[1763473081876,0.04595,91058.0,91057.0,0.02958928]
[1763473082067,0.04595,91057.0,91056.0,0.02958928]
[1763473082272,0.04595,91051.0,91050.0,0.0001648]
[1763473082576,0.04595,91039.0,91038.0,0.02958928]
[1763473082780,0.04595,91037.0,91036.0,0.02958928]
[1763473082973,0.04595,91035.0,91033.0,0.02958928]
[1763473083174,0.04595,91034.0,91033.0,0.04308]
[1763473083788,0.03615,91040.0,91039.0,0.04308]
[1763473083974,0.06105803,91040.0,91034.0,0.02959702]
[1763473084175,0.04595,91035.0,91034.0,0.02959702]
[1763473084371,0.04595,91034.0,91033.0,0.02959702]
[1763473084882,0.01291,91040.0,91032.0,0.02959702]
[1763473084883,0.04595,91033.0,91032.0,0.02959702]
[1763473085273,0.04595,91033.0,91031.0,0.02959702]
[1763473085479,0.04595,91032.0,91031.0,0.02959702]
[1763473085878,0.04595,91032.0,91030.0,0.02959702]
[1763473086080,0.04814803,91030.0,91029.0,0.02959702]
[1763473086383,0.05886,91025.0,91024.0,0.0001648]
[1763473086676,0.04595,91007.0,91005.0,0.03940923]
[1763473086884,0.04595,91007.0,90985.0,0.07816]
[1763473086885,0.04595,91007.0,91004.0,0.03940923]
[1763473087088,0.04595,91007.0,91002.0,0.03940923]
[1763473087281,0.04595,91007.0,91006.0,0.02231471]
[1763473087781,0.00219803,91010.0,91009.0,0.04308]
[1763473087976,0.04814803,91010.0,91009.0,0.04308]
[1763473088169,0.04595,91008.0,91006.0,0.0397325]
[1763473088371,0.04595,91007.0,91006.0,0.0397325]
[1763473088682,0.00219803,91010.0,91009.0,0.04308]
[1763473088986,0.04814803,91010.0,91009.0,0.04308]
[1763473089391,0.00219803,91010.0,91009.0,0.04308]
[1763473089680,0.04814803,91010.0,91009.0,0.04308]
[1763473089879,0.00219803,91010.0,91009.0,0.04308]
[1763473090272,0.04595,91007.0,91006.0,0.00027471]
[1763473090880,0.04595,91007.0,91006.0,0.04335471]
[1763473091375,0.00219803,91010.0,91009.0,0.04308]
[1763473091574,0.0001648,91016.0,91015.0,0.04308]
[1763473091774,0.01291,91040.0,91015.0,0.04308]
[1763473091976,0.01291,91069.0,91047.0,0.01326]
[1763473092176,0.04814803,91060.0,91059.0,0.02204]
[1763473092883,0.04595,91048.0,91039.0,0.03941044]
[1763473093086,0.04595,91048.0,91038.0,0.03941044]
[1763473093284,0.04595,91048.0,91036.0,0.05267044]
[1763473093491,0.04595,91048.0,91037.0,0.03941044]
[1763473093682,0.04595,91048.0,91047.0,0.04308]
[1763473094397,0.00219803,91050.0,91049.0,0.04308]
[1763473095487,0.04814803,91050.0,91049.0,0.02204]
[1763473095789,0.04595,91039.0,91038.0,0.03941044]
[1763473095987,0.00219803,91050.0,91034.0,0.0001648]
[1763473095988,0.04595,91035.0,91034.0,0.0001648]
[1763473096293,0.04595,91035.0,91034.0,0.0432448]
[1763473096487,0.04595,91035.0,91034.0,0.0001648]
[1763473096686,0.04595,91035.0,91034.0,0.0222048]
[1763473097083,0.04595,91035.0,91034.0,0.0432448]
[1763473097987,0.0001648,91048.0,91034.0,0.0432448]
[1763473098189,0.04814803,91040.0,91039.0,0.02204]
[1763473098384,0.02324,91035.0,91034.0,0.0432448]
[1763473098585,0.04595,91035.0,91034.0,0.0001648]
[1763473098892,0.04595,91035.0,91001.0,0.08834217]
[1763473098893,0.04595,91015.0,91014.0,0.03941044]
[1763473099092,0.04595,91015.0,90985.0,0.1100284]
[1763473099093,0.04595,91008.0,91007.0,0.03941044]
[1763473099292,0.04595,91008.0,91007.0,0.04308]
[1763473099586,0.00219803,91010.0,91009.0,0.04308]
[1763473099796,0.00219803,91010.0,91009.0,0.08248992]
[1763473100182,0.00219803,91010.0,91009.0,0.04308]
[1763473100388,0.02543803,91010.0,91009.0,0.04308]
[1763473100893,0.02543803,91010.0,91006.0,0.08495463]
[1763473100894,0.02211,91007.0,91006.0,0.08495463]
[1763473101099,0.04583803,91010.0,91009.0,0.04527]
[1763473101290,0.02430803,91010.0,91009.0,0.04527]
[1763473101593,0.04583803,91010.0,91009.0,0.04527]
[1763473101787,0.04583803,91010.0,91006.0,0.03968463]
[1763473101788,0.04364,91007.0,91006.0,0.00027471]
[1763473103792,0.00219803,91010.0,91006.0,0.04554471]
[1763473103994,0.04583803,91010.0,91009.0,0.04527]
[1763473104407,0.00219803,91010.0,91009.0,0.04527]
[1763473104702,0.00219803,91010.0,91008.0,0.01354]
[1763473104703,0.0001648,91019.0,91018.0,0.04527]
[1763473106100,0.132104,91014.0,91013.0,0.03940992]
[1763473106291,0.132104,91014.0,91013.0,0.02304]
[1763473106493,0.132104,91014.0,91013.0,0.04527]
[1763473106792,0.153634,91014.0,91011.0,0.03940992]
[1763473106991,0.153634,91014.0,91006.0,0.00027471]
[1763473106992,0.109994,91014.0,91013.0,0.04527]
[1763473108001,0.109992,91016.0,91011.0,0.14940692]
[1763473108199,0.1099955,91013.0,91012.0,0.04542]
[1763473108400,0.1521955,91013.0,91012.0,0.04542]
[1763473108592,0.1310955,91013.0,91012.0,0.04542]
[1763473110099,0.04439803,91010.0,91009.0,0.04542]
[1763473110689,0.02329803,91010.0,91009.0,0.04542]
[1763473111302,0.0422,91007.0,91006.0,0.00027471]
[1763473111598,0.00219803,91010.0,91009.0,0.04542]
[1763473111599,0.04439803,91010.0,91009.0,0.04542]
[1763473112203,0.00219803,91010.0,91009.0,0.04542]
[1763473112901,0.00219803,91010.0,91006.0,0.00027471]
[1763473112902,0.0422,91007.0,91006.0,0.00027471]
[1763473113201,0.00219803,91010.0,91009.0,0.04542]
[1763473113406,0.0422,91007.0,91006.0,0.00027471]
[1763473113590,0.0422,91007.0,91006.0,0.02330471]
[1763473113795,0.00219803,91010.0,91009.0,0.04542]
[1763473114710,0.02329803,91010.0,91009.0,0.04542]
[1763473115405,0.00219803,91010.0,91009.0,0.04542]
[1763473116498,0.04439803,91010.0,91009.0,0.02303]
[1763473116695,0.04439803,91010.0,91009.0,0.04542]
[1763473117701,0.0001648,91019.0,91018.0,0.04542]
[1763473120595,0.0422,91039.0,91038.0,0.04542]
[1763473121711,0.0157924,91030.0,91029.0,0.0455848]
[1763473121899,0.02279043,91030.0,91029.0,0.0455848]
[1763473122095,0.00219803,91030.0,91029.0,0.0455848]
[1763473122702,0.01179803,91030.0,91029.0,0.0455848]
[1763473123204,0.00219803,91030.0,91029.0,0.0455848]
[1763473123407,0.0097648,91048.0,91047.0,0.03688]
[1763473123605,0.0096,91037.0,91036.0,0.05927]
[1763473124202,0.0096,91030.0,91029.0,0.0231948]
[1763473124410,0.01179803,91030.0,91029.0,0.0455848]
[1763473124911,0.00219803,91030.0,91029.0,0.0455848]
[1763473125213,0.00699803,91030.0,91029.0,0.0455848]
[1763473125906,0.00219803,91030.0,91029.0,0.0455848]
[1763473126116,0.0001648,91048.0,91047.0,0.05927]
[1763473126409,0.0049648,91048.0,91047.0,0.05927]
[1763473126609,0.0097648,91048.0,91047.0,0.03688]
[1763473126809,0.0096,91037.0,91036.0,0.03688]
[1763473127004,0.0001648,91048.0,91039.0,0.04542]
[1763473127005,0.00699803,91040.0,91039.0,0.04542]
[1763473127207,0.00219803,91040.0,91039.0,0.04542]
[1763473129713,0.00016876,91040.0,91039.0,0.04542]
[1763473130010,0.0001648,91048.0,91047.0,0.05927]
[1763473132012,0.0097648,91048.0,91047.0,0.02303]
[1763473132314,0.0097648,91048.0,91036.0,0.05927]
[1763473132315,0.0048,91037.0,91036.0,0.05927]
[1763473133221,0.0009014,91040.0,91039.0,0.04542]
[1763473133609,0.0001648,91048.0,91047.0,0.05927]
[1763473134213,0.0049648,91048.0,91047.0,0.05927]
[1763473134617,0.0097648,91048.0,91047.0,0.05927]
[1763473134917,0.0049648,91048.0,91047.0,0.05927]
[1763473135119,0.0001648,91048.0,91047.0,0.05927]
[1763473137709,0.22283998,91060.0,91050.0,0.0020293]
[1763473138113,0.0048,91051.0,91050.0,0.0451593]
[1763473138315,0.0096,91051.0,91050.0,0.0020293]
[1763473138512,0.0096,91051.0,91050.0,0.0240293]
[1763473138705,1.5096,91051.0,91050.0,0.0451593]